bitfinex/quotes_ETHUSD_20220105
["timestamp","ask_amount","ask_price","bid_price","bid_amount"]
[1641418875616,0.00113685,3572.1,3572.0,1.22337582]
[1641418876263,0.00215951,3572.1,3572.0,1.22337582]
[1641418877364,3.94589355,3573.5,3572.3,1.39947]
[1641418877567,3.94589355,3573.6,3572.3,1.39947]
[1641418877866,0.00738951,3573.4,3572.3,1.39947]
[1641418878073,0.00738951,3573.4,3573.0,1.41751347]
[1641418878266,3.94589355,3573.6,3572.2,0.69973]
[1641418878267,0.00682108,3573.3,3572.2,0.69973]
[1641418878467,0.00682108,3573.3,3572.1,2.7991099]
[1641418878668,0.00625266,3573.2,3572.1,2.7991099]
[1641418878867,0.00625266,3573.2,3572.4,2.54514408]
[1641418879066,0.00568423,3573.1,3572.4,2.54514408]
[1641418879467,0.00511581,3573.0,3572.4,2.54514408]
[1641418879924,2.31041618,3573.9,3571.4,0.00284211]
[1641418879925,0.00454739,3572.9,3572.2,2.54514408]
[1641418880130,0.01260338,3572.4,3571.4,0.00284211]
[1641418880327,0.34060338,3572.4,3571.2,0.00511581]
[1641418880525,0.00113685,3572.3,3571.2,0.00511581]
[1641418880925,0.328,3572.4,3571.2,0.00511581]
[1641418880926,0.27913685,3572.4,3571.2,0.00511581]
[1641418881126,0.27913685,3572.4,3571.2,0.00625266]
[1641418881728,0.88638428,3572.4,3571.2,0.00625266]
[1641418882128,1.23059443,3572.0,3571.2,0.00625266]
[1641418882732,1.23059443,3572.0,3570.6,0.0096632]
[1641418883328,1.23059443,3572.0,3570.9,1.12493754]
[1641418883565,0.03913925,3572.1,3570.9,1.12493754]
[1641418883566,1.23059443,3571.6,3570.9,1.12493754]
[1641418883765,1.23059443,3571.6,3571.0,0.00738951]
[1641418884564,1.64069784,3571.9,3571.0,0.00738951]
[1641418884565,1.96608497,3571.7,3571.0,0.00738951]
[1641418884765,1.96608497,3571.7,3570.6,0.0096632]
[1641418884766,0.328,3571.6,3570.6,0.0096632]
[1641418885169,0.47878821,3571.0,3570.6,0.0096632]
[1641418885371,0.328,3571.6,3570.6,0.0096632]
[1641418885570,0.70044,3571.5,3570.6,0.0096632]
[1641418885772,0.70042,3571.3,3570.6,0.0096632]
[1641418885971,1.23059443,3571.1,3570.6,0.0096632]
[1641418886171,8.278,3571.0,3569.6,1.42540237]
[1641418886373,8.28027369,3571.0,3569.6,1.42540237]
[1641418886571,1.1168,3570.9,3569.7,0.00511581]
[1641418886875,0.70073,3569.9,3569.0,1.63010423]
[1641418887071,0.70073,3569.9,3565.9,1.5]
[1641418887072,7.95,3568.5,3566.9,1.98801774]
[1641418887321,7.95,3568.5,3568.2,3.80253689]
[1641418887519,7.95,3568.5,3568.2,3.76253689]
[1641418887817,7.95,3568.5,3567.7,4.75317112]
[1641418887818,7.95,3568.3,3567.7,4.75317112]
[1641418888120,0.48515714,3567.9,3567.7,4.75317112]
[1641418888315,0.48515714,3567.9,3566.9,0.7194616]
[1641418888522,0.48515714,3567.9,3567.8,0.00284212]
[1641418889117,0.4352,3568.2,3567.8,0.00284212]
[1641418889317,0.328,3568.2,3567.8,0.00284212]
[1641418889723,0.03896379,3568.6,3567.8,0.00284212]
[1641418889918,1.64069784,3569.1,3567.8,0.00284212]
[1641418890119,1.03096569,3569.2,3568.3,1.0237036]
[1641418890120,0.00113685,3568.5,3568.3,1.0237036]
[1641418890321,1.64069784,3568.9,3568.3,1.0237036]
[1641418890625,0.00284212,3568.8,3568.3,1.0237036]
[1641418891063,0.328,3570.1,3568.3,1.0237036]
[1641418891064,0.00227369,3568.7,3568.3,1.0237036]
[1641418891472,0.00170527,3568.6,3568.4,0.45537041]
[1641418891768,0.00113685,3568.5,3568.3,1.0237036]
[1641418892170,0.0096632,3570.0,3568.3,1.0237036]
[1641418892371,0.13819997,3569.8,3568.3,1.0237036]
[1641418892671,0.00795793,3569.7,3567.6,0.00397897]
[1641418892870,0.00795793,3569.7,3567.6,2.29341931]
[1641418893071,0.0073895,3569.6,3567.9,0.5]
[1641418893274,0.34783431,3569.6,3567.7,0.00341054]
[1641418893471,0.34783431,3569.6,3568.0,0.00170527]
[1641418893472,0.00682108,3569.5,3568.0,0.00170527]
[1641418893674,0.328,3569.4,3567.5,0.00454739]
[1641418893972,0.53735433,3568.9,3567.5,1.14378468]
[1641418894172,0.7009,3568.9,3567.5,1.14378468]
[1641418894372,0.00284212,3568.8,3567.6,0.00397897]
[1641418894833,0.00227369,3568.7,3567.3,0.00568424]
[1641418895229,0.03510265,3568.9,3567.3,0.00568424]
[1641418895230,0.00170527,3568.6,3567.3,0.00568424]
[1641418895430,0.00170527,3568.6,3567.6,0.46561865]
[1641418895632,5.63093454,3569.8,3567.7,1.20682848]
[1641418895633,0.00113685,3568.5,3567.7,1.20682848]
[1641418895837,0.00113685,3568.5,3567.7,1.21023902]
[1641418896033,4.55721994,3569.8,3568.8,1.00316559]
[1641418896034,0.00795793,3569.7,3568.8,1.00316559]
[1641418896232,0.00795793,3569.7,3567.7,2.71888135]
[1641418896437,4.55721994,3569.8,3568.7,0.57308315]
[1641418896438,0.0073895,3569.6,3568.7,0.57308315]
[1641418896837,0.00682108,3569.5,3568.7,0.57308315]
[1641418897240,0.00625266,3569.4,3568.7,0.57308315]
[1641418897541,1.22760296,3569.1,3568.8,1.26676348]
[1641418897740,2.96e-06,3569.1,3568.9,7.95]
[1641418898039,2.96e-06,3569.1,3568.8,1.26676348]
[1641418898040,0.00397896,3569.0,3568.8,1.26676348]
[1641418898441,0.00341054,3568.9,3568.8,1.26676348]
[1641418899069,0.00341054,3568.9,3568.8,3.71676348]
[1641418899269,2.94747415,3570.9,3569.2,0.5]
[1641418899469,0.70049,3571.0,3569.6,0.57490744]
[1641418899772,1.64123044,3570.2,3569.6,0.57490744]
[1641418900173,0.00682108,3570.1,3569.6,0.57490744]
[1641418900371,4.09101997,3571.2,3569.6,0.57490744]
[1641418900372,4.09101997,3571.2,3569.9,7.95]
[1641418900577,4.09101997,3571.2,3571.0,1.02284598]
[1641418900775,4.09101997,3571.2,3571.0,1.60110705]
[1641418900776,0.00568424,3571.1,3571.0,1.60110705]
[1641418901170,4.10590416,3571.4,3571.1,7.55]
[1641418901373,4.10590416,3571.4,3571.0,1.60110705]
[1641418901603,4.10760943,3571.4,3571.0,1.60110705]
[1641418901973,0.00170527,3571.4,3571.0,1.60110705]
[1641418902171,0.00170527,3571.4,3570.8,0.6469]
[1641418902424,0.00170527,3571.4,3571.1,1.98368219]
[1641418903620,0.00170527,3571.4,3570.9,0.56696939]
[1641418906866,0.001386,3571.5,3571.1,6.0]
[1641418907070,0.001386,3571.5,3571.0,2.06536982]
[1641418907271,0.001386,3571.5,3571.2,0.00113685]
[1641418907471,0.001386,3571.5,3571.1,0.00170527]
[1641418909476,0.04444166,3571.5,3571.1,0.00170527]
[1641418909674,0.43799065,3571.5,3571.1,0.00170527]
[1641418910120,0.37244166,3571.5,3571.1,0.00170527]
[1641418910318,0.37244166,3571.5,3571.0,0.0022737]
[1641418910519,0.37325774,3571.5,3571.0,0.0022737]
[1641418911319,1.64524252,3571.3,3571.0,0.0022737]
[1641418911526,1.64524252,3571.3,3570.8,0.6469]
[1641418911527,1.68829818,3571.3,3570.9,0.47364643]
[1641418911921,1.68829818,3571.3,3571.0,0.0022737]
[1641418912321,1.68829818,3571.3,3570.1,0.00738951]
[1641418912721,0.04305566,3571.3,3570.1,0.00738951]
[1641418912921,0.70049,3570.9,3570.1,0.00738951]
[1641418913120,0.74354566,3570.9,3570.1,0.00738951]
[1641418913766,1.23317385,3570.7,3570.1,0.00738951]
[1641418913968,1.27622951,3570.7,3570.1,0.00738951]
[1641418914966,0.04305566,3570.7,3570.1,0.00738951]
[1641418915567,0.04305566,3570.7,3570.4,1.27004773]
[1641418915768,0.04305566,3570.7,3570.1,0.00738951]
[1641418915969,0.04305566,3570.7,3570.5,0.00511582]
[1641418916170,0.04305566,3570.7,3570.2,2.08099475]
[1641418916472,0.04305566,3570.7,3570.3,0.00625266]
[1641418917520,0.04305566,3570.7,3570.1,0.00738951]
[1641418918116,0.04305566,3570.7,3570.4,0.49728758]
[1641418918317,0.04305566,3570.7,3570.1,1.05898551]
[1641418918517,0.04305566,3570.7,3570.5,0.00511582]
[1641418918722,0.04305566,3570.7,3570.2,2.07253959]
[1641418919118,0.04305566,3570.7,3570.3,0.00625266]
[1641418919617,0.04305566,3570.7,3570.3,2.07197116]
[1641418920021,0.04305566,3570.7,3570.4,0.00568424]
[1641418921375,0.04305566,3570.7,3570.1,0.00738951]
[1641418921673,0.04305566,3570.7,3569.4,0.01136847]
[1641418921873,1.23317385,3570.5,3569.4,0.01136847]
[1641418922081,1.27622951,3570.5,3569.4,0.59703098]
[1641418922277,1.27622951,3570.5,3569.4,1.60854924]
[1641418922477,1.27622951,3570.5,3569.5,0.01080005]
[1641418923379,1.27622951,3570.5,3569.7,0.71268927]
[1641418923380,0.04305566,3570.5,3569.7,0.71268927]
[1641418923778,0.04305566,3570.5,3569.8,0.70937478]
[1641418923978,0.04305566,3570.5,3570.4,1.02691863]
[1641418924379,0.04305566,3570.5,3570.4,1.03260287]
[1641418925420,0.04305566,3570.5,3570.4,3.11372042]
[1641418926219,0.04305566,3570.5,3570.4,1.03260287]
[1641418926619,0.04305566,3570.5,3570.4,0.00568424]
[1641418927025,0.04305566,3570.5,3570.0,0.00795793]
[1641418927425,0.04305566,3570.5,3570.4,2.09527814]
[1641418927625,4.05,3570.4,3569.8,0.00909478]
[1641418927825,4.05,3570.4,3569.7,1.42551614]
[1641418927826,0.70062,3570.1,3569.7,1.42551614]
[1641418928027,0.74367566,3570.1,3569.7,1.42551614]
[1641418928427,0.74367566,3570.1,3569.2,2.85146335]
[1641418928668,0.74367566,3570.1,3568.9,1.42551614]
[1641418928870,0.74367566,3570.1,3569.3,0.0119369]
[1641418929469,0.92621,3570.0,3569.3,0.0119369]
[1641418929673,0.70075,3569.7,3569.3,0.0119369]
[1641418929872,0.70075,3569.7,3568.0,0.01257984]
[1641418929873,0.328,3569.6,3568.5,0.01648428]
[1641418930069,1.40175,3569.1,3568.1,0.01875798]
[1641418930271,0.328,3569.0,3568.0,0.0193264]
[1641418930469,0.70102,3568.4,3568.0,0.0193264]
[1641418930669,0.70105,3568.2,3568.0,0.0193264]
[1641418930869,0.74410566,3568.2,3568.0,0.0193264]
[1641418931271,0.74410566,3568.2,3568.0,2.64e-05]
[1641418931477,0.74410566,3568.2,3567.9,0.01989483]
[1641418931676,1.44517566,3568.2,3567.9,0.01989483]
[1641418931875,1.48329958,3568.2,3567.9,0.01989483]
[1641418932075,0.04305566,3568.2,3567.9,0.01989483]
[1641418933924,5.566e-05,3568.2,3567.9,0.01989483]
[1641418934123,1.37137382,3569.5,3567.9,0.01989483]
[1641418934327,0.13819997,3569.5,3568.2,0.70065]
[1641418934528,0.13819997,3569.5,3567.9,0.01989483]
[1641418934529,0.00793153,3569.4,3567.9,0.01989483]
[1641418934926,0.0073631,3569.3,3567.9,0.01989483]
[1641418935130,0.0073631,3569.3,3568.1,0.4564897]
[1641418935327,0.00679468,3569.2,3567.9,0.01989483]
[1641418935527,0.00679468,3569.2,3568.1,1.14390678]
[1641418935729,0.00622626,3569.1,3568.1,1.14390678]
[1641418935927,0.00622626,3569.1,3567.9,0.01989483]
[1641418936170,0.00565783,3569.0,3567.9,0.01989483]
[1641418936570,0.00508941,3568.9,3567.9,0.01989483]
[1641418936972,0.00452099,3568.8,3567.9,0.01989483]
[1641418937375,0.00395256,3568.7,3567.9,0.01989483]
[1641418937576,1.1506653,3568.5,3567.9,0.01989483]
[1641418937782,0.7010411,3568.3,3567.9,0.01989483]
[1641418937978,0.9228353,3568.3,3567.9,9.483e-05]
[1641418938178,0.9228353,3568.3,3567.2,1.42551614]
[1641418938179,0.30111045,3568.2,3567.2,1.42551614]
[1641418938378,1.4022851,3568.0,3567.2,1.42551614]
[1641418938577,1.40223,3567.8,3566.9,0.7194616]
[1641418938778,0.70112,3567.4,3566.9,0.7194616]
[1641418939177,0.01588946,3567.3,3566.9,0.7194616]
[1641418939579,0.01532104,3567.2,3566.9,0.7194616]
[1641418940119,1.40201,3568.2,3566.9,0.7194616]
[1641418940120,0.01475262,3567.1,3566.9,0.7194616]
[1641418940519,0.01418419,3567.0,3566.9,0.7194616]
[1641418940718,0.01418419,3567.0,3566.9,1.22228371]
[1641418941419,3.828,3568.8,3567.0,7.2]
[1641418941620,0.70091,3568.3,3566.9,0.7194616]
[1641418942422,0.70091,3568.3,3567.0,0.52182919]
[1641418942825,0.70091,3568.3,3566.9,2.09552784]
[1641418943423,0.70091,3568.3,3566.9,0.7194616]
[1641418943873,0.70108,3567.8,3566.9,0.7194616]
[1641418944071,0.70109,3567.4,3566.9,0.7194616]
[1641418944472,0.73896339,3568.2,3566.9,0.7194616]
[1641418944473,0.00170527,3567.3,3566.9,0.7194616]
[1641418944671,0.00170527,3567.3,3566.9,1.91089947]
[1641418944872,0.00113685,3567.2,3566.9,1.91089947]
[1641418945272,2.46777715,3568.4,3566.9,1.91089947]
[1641418945273,0.00738951,3568.3,3566.9,1.91089947]
[1641418945674,0.701,3567.8,3566.9,1.91089947]
[1641418946072,0.00397897,3567.7,3566.9,0.7194616]
[1641418946472,0.00341054,3567.6,3566.9,0.7194616]
[1641418946871,0.00284212,3567.5,3566.9,0.7194616]
[1641418947322,0.0022737,3567.4,3566.9,0.7194616]
[1641418947719,2.94372859,3568.5,3567.0,2.52137961]
[1641418947720,0.00170527,3567.3,3567.0,2.52137961]
[1641418947919,0.00170527,3567.3,3567.2,7.96263654]
[1641418948121,0.03667958,3569.3,3567.2,10.67923023]
[1641418948320,4.20073,3569.2,3567.7,0.70073]
[1641418948519,0.00795793,3568.4,3567.9,1.01560844]
[1641418948919,0.00738951,3568.3,3568.0,2.55520952]
[1641418949121,0.00738951,3568.3,3567.9,1.01560844]
[1641418949319,0.13819997,3569.5,3567.9,1.01560844]
[1641418949320,0.00682109,3568.2,3567.9,1.01560844]
[1641418949722,0.00625266,3568.1,3568.0,8.49079539]
[1641418950021,0.00625266,3568.1,3568.0,0.54079539]
[1641418950223,0.10710994,3569.5,3568.1,5.4]
[1641418950422,0.10710994,3569.5,3568.0,0.54079539]
[1641418950625,0.70809951,3569.4,3568.0,0.54079539]
[1641418951065,0.00682108,3569.3,3568.0,0.54079539]
[1641418951474,0.00625266,3569.2,3568.5,1.22702503]
[1641418951872,0.00568424,3569.1,3568.5,1.22702503]
[1641418952273,0.00511581,3569.0,3568.7,0.46586965]
[1641418952673,0.10710994,3569.5,3568.5,1.22702503]
[1641418952674,0.00454739,3568.9,3568.5,1.22702503]
[1641418952972,0.10710994,3569.5,3568.5,1.22702503]
[1641418952973,0.00397897,3568.8,3568.5,1.22702503]
[1641418953475,5.71071624,3570.7,3569.1,0.70046]
[1641418953673,5.71071624,3570.7,3569.5,1.33207803]
[1641418953674,3.50081624,3570.7,3569.5,1.33207803]
[1641418953872,1.59916487,3570.9,3569.6,0.5443628]
[1641418953873,0.00852635,3570.2,3569.6,0.5443628]
[1641418954072,0.328,3570.9,3569.6,0.5443628]
[1641418954073,0.98699635,3570.9,3569.6,0.5443628]
[1641418954273,0.70046,3570.6,3569.7,0.00284211]
[1641418956920,0.65046,3570.6,3569.7,0.00284211]
[1641418957922,0.65046,3570.6,3569.6,0.00341054]
[1641418958226,0.60046,3570.6,3569.1,0.00625265]
[1641418958423,0.66600899,3570.6,3569.1,0.00625265]
[1641418958668,0.70065,3570.0,3569.1,0.00625265]
[1641418958872,0.70067,3569.6,3568.4,0.01023162]
[1641418959275,0.70067,3569.6,3568.1,0.01193689]
[1641418959874,1.93765242,3569.6,3568.1,1.04184768]
[1641418960074,0.70072,3569.2,3568.1,1.04184768]
[1641418960275,0.70072,3569.2,3568.2,0.01136846]
[1641418962526,0.70068,3569.4,3568.2,0.01136846]
[1641418963123,0.70068,3569.4,3567.6,0.03109002]
[1641418963124,0.36372358,3569.3,3568.1,0.01193689]
[1641418963323,0.36372358,3569.3,3567.6,0.03109002]
[1641418963324,0.39354899,3569.3,3567.7,0.01421058]
[1641418963528,0.7008906,3568.7,3567.7,0.01421058]
[1641418963725,0.70088,3568.4,3567.7,0.01421058]
[1641418963925,0.328,3568.3,3567.7,0.01421058]
[1641418964127,1.40207,3568.1,3567.7,0.01421058]
[1641418964325,0.328,3568.0,3567.0,0.01818955]
[1641418964525,0.7011235,3567.7,3567.0,0.01818955]
[1641418964726,0.70115,3567.4,3567.0,0.01818955]
[1641418965825,0.7011865,3567.3,3567.0,0.01818955]
[1641418966071,0.70119,3567.2,3567.0,0.01818955]
[1641418966471,0.328,3568.3,3567.0,0.01818955]
[1641418967278,0.328,3568.3,3567.4,1.13854563]
[1641418967679,0.328,3568.3,3567.5,0.01534743]
[1641418968079,1.32350994,3569.1,3567.5,0.01534743]
[1641418968279,0.10710994,3569.1,3567.5,0.01534743]
[1641418968683,0.7009,3568.8,3567.5,0.01534743]
[1641418969080,0.7009,3568.8,3567.6,0.4418559]
[1641418969281,0.7009,3568.8,3567.5,0.01534743]
[1641418969483,0.10710994,3569.1,3567.7,0.01421058]
[1641418969681,0.10710994,3569.1,3567.5,0.01534743]
[1641418969929,0.10710994,3569.1,3567.6,0.70078]
[1641418970130,0.10710994,3569.1,3567.5,0.01534743]
[1641418970332,0.10710994,3569.1,3567.7,0.01421058]
[1641418970530,0.10710994,3569.1,3567.6,0.60575925]
[1641418970730,0.80785994,3569.1,3567.6,0.60575925]
[1641418971028,0.80785994,3569.1,3567.7,0.01421058]
[1641418971029,1.50868214,3569.1,3567.7,0.01421058]
[1641418971234,2.20951214,3569.1,3567.7,0.01421058]
[1641418971429,1.50876214,3569.1,3567.7,0.01421058]
[1641418972231,1.72969,3569.0,3567.7,0.01421058]
[1641418972430,0.7009226,3568.5,3567.7,0.01421058]
[1641418972630,0.36221904,3568.5,3567.4,0.01591585]
[1641418972830,0.328,3568.5,3567.0,0.01818955]
[1641418973678,0.701,3568.2,3567.0,0.01818955]
[1641418973882,0.7010103,3568.1,3567.0,0.01818955]
[1641418974177,0.70102,3567.8,3567.0,0.01818955]
[1641418974781,0.70102,3567.8,3567.1,1.99130476]
[1641418975180,0.70102,3567.8,3567.2,0.0170527]
[1641418975584,0.70098,3568.0,3567.2,0.0170527]
[1641418975782,1.02898,3568.0,3567.1,0.01762112]
[1641418975983,1.40238,3567.7,3567.1,0.01762112]
[1641418976181,1.40242,3567.5,3567.1,0.01762112]
[1641418976384,2.00242,3567.5,3567.3,1.99130476]
[1641418976581,0.7012432,3567.4,3567.3,1.99130476]
[1641418976782,0.7013,3567.3,3566.8,1.40612291]
[1641418976981,0.70133,3567.1,3566.9,0.5055616]
[1641418977183,1.02933,3567.1,3567.0,0.01818955]
[1641418977629,2.02933,3567.1,3567.0,0.01818955]
[1641418978032,4.75,3567.0,3565.9,1.40612291]
[1641418978232,0.70134,3566.5,3565.9,1.40612291]
[1641418978431,0.70134,3566.5,3566.0,0.00568423]
[1641418979231,0.328,3567.1,3566.0,0.00568423]
[1641418979531,0.35678979,3567.1,3566.0,0.00568423]
[1641418979934,0.35678979,3567.1,3565.8,0.00682108]
[1641418980341,0.70123,3566.7,3565.8,0.00682108]
[1641418980534,0.70123,3566.7,3565.9,1.40612291]
[1641418980733,0.53749275,3567.0,3566.0,3.15]
[1641418980931,0.53749275,3567.0,3565.9,1.40612291]
[1641418981184,0.53749275,3567.0,3566.1,0.00511581]
[1641418981597,0.35678979,3567.1,3566.1,0.00511581]
[1641418981598,0.02878979,3567.1,3566.1,0.00511581]
[1641418981796,0.02878979,3567.1,3566.5,0.01213338]
[1641418982196,0.02878979,3567.1,3566.6,0.00227369]
[1641418982996,0.02878979,3567.1,3566.4,0.00341054]
[1641418983597,1.23765121,3567.1,3566.4,0.00341054]
[1641418983797,0.70126,3566.9,3566.4,0.00341054]
[1641418983998,1.23765121,3567.1,3566.4,0.00341054]
[1641418983999,1.06199908,3566.8,3566.4,0.00341054]
[1641418984205,7.95,3566.6,3565.9,1.40612291]
[1641418984400,7.95,3566.4,3565.3,2.85146335]
[1641418984599,4.59922087,3566.3,3565.3,2.85146335]
[1641418984832,0.7017,3565.6,3565.3,2.85146335]
[1641418985035,5.9361,3565.5,3565.1,3.76898483]
[1641418985230,5.9361,3565.5,3565.1,2.73328483]
[1641418985431,7.95,3565.3,3564.7,0.7194616]
[1641418985631,0.70178,3565.0,3564.7,0.7194616]
[1641418985834,0.328,3564.9,3564.8,0.00227369]
[1641418986031,3.528,3564.9,3564.8,0.00227369]
[1641418988132,0.328,3564.9,3564.8,0.00227369]
[1641418988983,2.928,3564.9,3564.8,0.00227369]
[1641418989386,2.928,3564.9,3564.8,7.369e-05]
[1641418989586,0.5193384,3564.7,3563.4,0.45]
[1641418989782,0.5193384,3564.7,3564.3,6.62722732]
[1641418989783,1.40374,3564.5,3564.3,6.62722732]
[1641418989982,13.8861,3564.4,3564.3,6.62722732]
[1641418990186,14.9989,3564.4,3563.4,0.45]
[1641418990383,8.55431741,3564.3,3563.4,0.45]
[1641418990583,8.55431741,3564.3,3563.5,0.00454739]
[1641418990584,0.328,3564.2,3563.5,0.00454739]
[1641418990783,8.3776427,3563.6,3563.5,0.00454739]
[1641418990993,8.7056427,3563.6,3563.5,0.00454739]
[1641418991186,1.328,3563.6,3563.5,0.00454739]
[1641418991989,6.378,3563.6,3563.5,0.00454739]
[1641418992186,8.3,3563.5,3563.4,4.739e-05]
[1641418992423,0.58423182,3562.8,3562.0,3.9668]
[1641418992629,0.58423182,3562.8,3561.2,4.75199416]
[1641418992828,0.58423182,3562.8,3562.7,0.00454739]
[1641418993029,8.86223182,3562.8,3562.7,0.00454739]
[1641418993227,8.86223182,3562.8,3561.7,3.80845365]
[1641418993228,6.6,3562.7,3561.7,3.80845365]
[1641418993427,12.5361,3562.7,3561.7,3.80845365]
[1641418993627,12.6457,3562.7,3561.7,3.80845365]
[1641418993830,12.9465,3562.7,3561.7,3.80845365]
[1641418994026,12.8361,3562.7,3561.7,3.80845365]
[1641418994230,12.8361,3562.7,3561.0,2.85707066]
[1641418994536,16.24,3562.5,3561.0,1.64367066]
[1641418994731,0.7024668,3561.5,3561.0,1.49707021]
[1641418994930,0.7024668,3561.5,3561.1,0.00909477]
[1641418994931,5.9361,3561.4,3561.1,0.00909477]
[1641418995130,6.0553,3561.4,3561.1,0.00909477]
[1641418995330,7.95,3561.2,3560.8,2.59721863]
[1641418995531,7.95,3561.0,3560.4,0.7194616]
[1641418995732,0.7026993,3560.7,3560.2,5.576e-05]
[1641418995931,0.7026993,3560.7,3559.4,6.94]
[1641418995932,5.9361,3560.6,3559.5,4.91676213]
[1641418996182,5.9361,3560.6,3558.3,13.1594616]
[1641418996183,7.95,3560.2,3558.9,6.17]
[1641418996382,6.04320994,3560.1,3559.6,0.00397896]
[1641418996585,9.39301146,3559.8,3558.9,0.55016896]
[1641418996786,7.90312566,3559.0,3558.9,0.55016896]
[1641418996989,6.57413,3559.0,3558.9,0.55016896]
[1641418997195,6.57413,3559.0,3558.9,0.55414793]
[1641418997390,5.9361,3559.0,3558.9,0.55414793]
[1641418998091,5.9361,3559.0,3558.9,0.00397897]
[1641418998491,5.9361,3559.0,3558.4,0.00682108]
[1641418999189,5.9361,3559.0,3558.8,1.02145661]
[1641418999393,5.6081,3559.0,3558.8,1.02145661]
[1641418999591,3.9307,3559.0,3558.8,1.02145661]
[1641419000227,3.9307,3559.0,3558.8,0.59498966]
[1641419000427,3.9307,3559.0,3557.4,1.40508]
[1641419000628,0.00284211,3558.9,3557.4,1.40508]
[1641419000828,0.00284211,3558.9,3557.5,0.00511582]
[1641419001028,0.00227369,3558.8,3557.5,0.00511582]
[1641419001434,0.00170527,3558.7,3558.4,1.39561812]
[1641419001638,0.00170527,3558.7,3557.5,0.00511582]
[1641419001848,0.34071261,3559.7,3557.5,0.00511582]
[1641419001849,0.00113684,3558.6,3557.5,0.00511582]
[1641419002035,0.00113684,3558.6,3556.1,10.9335616]
[1641419002036,0.00113684,3558.6,3557.1,0.00738951]
[1641419002236,0.328,3558.8,3556.8,0.00909478]
[1641419002642,0.328,3558.8,3556.3,0.0119369]
[1641419002643,0.70295,3558.6,3556.3,0.0119369]
[1641419002838,0.70295,3558.6,3557.1,1.06770037]
[1641419002839,0.46618345,3558.4,3557.1,1.06770037]
[1641419003141,1.03095,3558.6,3557.2,0.00682109]
[1641419004187,3.03551783,3558.5,3557.2,0.00682109]
[1641419004380,3.03551783,3558.5,3556.3,0.0119369]
[1641419004381,0.70311,3557.7,3556.3,0.0119369]
[1641419004580,0.70311,3557.7,3556.2,0.01250532]
[1641419005281,0.70311,3557.7,3556.3,1.30959051]
[1641419005481,0.328,3558.1,3556.3,1.30959051]
[1641419005682,0.328,3558.1,3556.4,0.01136847]
[1641419006081,0.328,3558.1,3556.5,0.5]
[1641419006281,0.328,3558.1,3556.4,0.01136847]
[1641419006483,0.328,3558.1,3556.6,0.01023163]
[1641419006683,0.328,3558.1,3556.2,0.01250532]
[1641419007084,0.328,3558.1,3556.4,0.5]
[1641419007320,0.328,3558.1,3556.7,0.0016955]
[1641419007722,0.328,3558.1,3557.2,1.01731844]
[1641419008120,0.328,3558.1,3557.3,0.00625266]
[1641419008724,1.70296,3558.5,3557.3,0.00625266]
[1641419008725,1.0,3558.5,3557.3,0.00625266]
[1641419008923,1.18647518,3558.7,3557.3,0.00625266]
[1641419008924,1.18647518,3558.7,3558.4,0.45574724]
[1641419009325,0.00113684,3558.6,3558.4,0.45574724]
[1641419011379,0.00113684,3558.6,3558.1,1.37694676]
[1641419011672,0.00113684,3558.6,3558.2,0.00113685]
[1641419012077,0.00113684,3558.6,3557.1,0.00738951]
[1641419012480,0.00113684,3558.6,3557.9,1.13728654]
[1641419012684,0.00113684,3558.6,3557.9,1.13466942]
[1641419012880,0.00113684,3558.6,3558.0,0.0022737]
[1641419013883,1.5538306,3558.2,3558.0,0.0022737]
[1641419014480,1.55496744,3558.6,3558.0,0.0022737]
[1641419014931,1.55496744,3558.6,3558.0,2.71243862]
[1641419015130,1.55496744,3558.6,3558.0,0.0022737]
[1641419015333,1.55496744,3558.6,3558.1,0.00170527]
[1641419015530,1.55496744,3558.6,3558.0,16.2422737]
[1641419015932,0.00113684,3558.6,3558.1,0.00170527]
[1641419017734,0.00113684,3558.6,3558.2,16.24]
[1641419017935,0.00113684,3558.6,3558.2,16.24157015]
[1641419018133,0.00113684,3558.6,3558.5,6.46602881]
[1641419018568,0.00113684,3558.6,3558.5,1.73399562]
[1641419018767,0.00113684,3558.6,3558.5,1.21602881]
[1641419020174,0.00113684,3558.6,3558.3,0.60179137]
[1641419020575,0.00113684,3558.6,3558.2,0.00157015]
[1641419023726,0.52586497,3558.4,3558.2,0.00157015]
[1641419024225,0.00113684,3558.6,3558.2,0.00157015]
[1641419024425,0.00113684,3558.6,3556.9,0.44281899]
[1641419024726,0.00227369,3558.5,3557.0,0.00625266]
[1641419025125,0.00170527,3558.4,3557.0,0.00625266]
[1641419025527,0.00113684,3558.3,3557.0,0.00625266]
[1641419025728,0.00113684,3558.3,3557.4,1.19431294]
[1641419025927,0.00227369,3558.5,3557.4,1.19431294]
[1641419026172,0.00227369,3558.5,3557.5,0.00341055]
[1641419026370,0.328,3558.9,3557.5,0.00341055]
[1641419026371,0.00170527,3558.4,3557.5,0.00341055]
[1641419026776,0.00113684,3558.3,3557.7,0.53397571]
[1641419027177,0.70793581,3559.0,3557.8,0.00170527]
[1641419027578,0.00454738,3558.9,3557.8,0.00170527]
[1641419027979,0.00397896,3558.8,3557.8,0.00170527]
[1641419028382,0.00341054,3558.7,3557.8,0.00170527]
[1641419028782,0.00284211,3558.6,3557.9,0.0012213]
[1641419029183,1.56388868,3559.4,3557.9,0.0012213]
[1641419029184,0.00227369,3558.5,3557.9,0.0012213]
[1641419029583,0.00170527,3558.4,3557.9,0.0012213]
[1641419030019,0.00113684,3558.3,3558.1,1.03955374]
[1641419030421,0.00511581,3559.0,3558.1,1.03955374]
[1641419030823,0.00454738,3558.9,3558.1,1.03955374]
[1641419031229,0.00397896,3558.8,3558.5,0.53783195]
[1641419031426,0.00397896,3558.8,3558.7,1.41931197]
[1641419031627,1.17441084,3559.4,3558.7,1.41931197]
[1641419032027,0.00682108,3559.3,3558.7,1.41931197]
[1641419032429,0.00625265,3559.2,3559.1,4.60173667]
[1641419032628,0.00625265,3559.2,3559.1,0.60173667]
[1641419034567,0.00625265,3559.2,3559.1,8.50173667]
[1641419037530,0.00625265,3559.2,3559.1,11.18828098]
[1641419037729,0.00625265,3559.2,3559.1,8.50173667]
[1641419038134,0.00625265,3559.2,3559.1,0.60173667]
[1641419039635,2.06398265,3560.3,3559.1,0.60173667]
[1641419039836,2.57956084,3560.3,3559.1,0.60173667]
[1641419040035,0.00454739,3560.0,3559.1,0.60173667]
[1641419040436,0.00397897,3559.9,3558.7,1.41931197]
[1641419040838,0.70603914,3559.8,3558.8,0.00227369]
[1641419041405,0.52286587,3559.2,3558.3,0.00511581]
[1641419041902,0.52286587,3559.2,3557.0,5.26638]
[1641419041903,0.7028253,3558.8,3557.5,0.0096632]
[1641419042106,0.73482537,3558.8,3557.5,0.0096632]
[1641419042304,0.85086587,3559.2,3557.2,0.01136847]